fUSD/lending_fUSD_20240114
["ID","MTS","AMOUNT","RATE_DAILY","PERIOD"]
[311604523,1705264301440,-500.0,0.00031506,2]
[311604524,1705264301450,-500.0,0.00031506,2]
[311604525,1705264301459,-500.0,0.00031506,2]
[311604526,1705264301468,-522.71,0.00031506,2]
[311604527,1705264301477,-500.0,0.00031506,2]
[311604528,1705264301487,-500.0,0.00031506,2]
[311604529,1705264301496,-623.93,0.00031506,2]
[311604530,1705264301505,-524.27,0.00031506,2]
[311604531,1705264301515,-1298.17,0.00031506,2]
[311604532,1705264301524,-500.0,0.00031506,2]
[311604533,1705264301534,-500.0,0.00031506,2]
[311604534,1705264301544,-705.28,0.00031506,2]
[311604535,1705264301553,-553.43,0.00031506,2]
[311604536,1705264301563,-841.22,0.00031506,2]
[311604537,1705264301574,-779.76,0.00031506,2]
[311604538,1705264301583,-500.0,0.00031506,2]
[311604539,1705264301593,-594.72,0.00031506,2]
[311604540,1705264301602,-663.62,0.00031506,2]
[311604541,1705264301611,-754.6,0.00031506,2]
[311604542,1705264301623,-971.46,0.00031506,2]
[311604543,1705264301632,-500.0,0.00031506,2]
[311604544,1705264301641,-500.0,0.00031506,2]
[311604545,1705264301651,-500.0,0.00031506,2]
[311604546,1705264301661,-406.27651423,0.00031506,2]
[311604547,1705264301669,-640.22,0.00031506,2]
[311604548,1705264301679,-500.0,0.00031506,2]
[311604549,1705264301688,-880.9,0.00031506,2]
[311604550,1705264301698,-500.0,0.00031506,2]
[311604551,1705264301709,-1002.82,0.00031506,2]
[311604552,1705264301718,-668.12,0.00031506,2]
[311604553,1705264301727,-690.19,0.00031506,2]
[311604554,1705264301738,-604.35,0.00031506,2]
[311604555,1705264301747,-500.0,0.00031506,2]
[311604556,1705264301757,-500.0,0.00031506,2]
[311604557,1705264301766,-688.38,0.00031506,2]
[311604558,1705264301775,-619.28,0.00031506,2]
[311604559,1705264301785,-500.0,0.00031506,2]
[311604560,1705264301794,-529.02,0.00031506,2]
[311604561,1705264301803,-779.6,0.00031506,2]
[311604562,1705264301812,-500.0,0.00031506,2]
[311604563,1705264301821,-1160.15,0.00031506,2]
[311604564,1705264301833,-1042.53,0.00031506,2]
[311604565,1705264301842,-500.0,0.00031506,2]
[311604566,1705264301850,-500.0,0.00031506,2]
[311604567,1705264301860,-500.0,0.00031506,2]
[311604568,1705264301870,-500.0,0.00031506,2]
[311604569,1705264301879,-790.69,0.00031506,2]
[311604570,1705264301889,-684.1,0.00031506,2]
[311604571,1705264301899,-647.62,0.00031506,2]
[311604572,1705264301909,-500.0,0.00031506,2]
[311604573,1705264301920,-500.0,0.00031506,2]
[311604574,1705264301931,-500.0,0.00031506,2]
[311604575,1705264301941,-500.0,0.00031506,2]
[311604576,1705264301951,-500.0,0.00031506,2]
[311604577,1705264301962,-3167.32,0.00031506,2]
[311604578,1705264301973,-571.94,0.00031506,2]
[311604579,1705264301983,-567.97,0.00031506,2]
[311604580,1705264301993,-522.59,0.00031506,2]
[311604581,1705264302003,-532.19026038,0.00031506,2]
[311604582,1705264302014,-500.0,0.00031506,2]
[311604583,1705264302025,-590.48450176,0.00031506,2]
[311604584,1705264302035,-500.0,0.00031506,2]
[311604585,1705264302045,-500.0,0.00031506,2]
[311604586,1705264302055,-500.0,0.00031506,2]
[311604587,1705264302065,-500.0,0.00031506,2]
[311604588,1705264302075,-774.9,0.00031506,2]
[311604589,1705264302084,-500.0,0.00031506,2]
[311604590,1705264302095,-1088.65,0.00031506,2]
[311604591,1705264302104,-884.91,0.00031506,2]
[311604592,1705264302114,-1154.9,0.00031506,2]
[311604593,1705264302130,-537.49,0.00031506,2]
[311604594,1705264302140,-500.0,0.00031506,2]
[311604595,1705264302150,-766.25,0.00031506,2]
[311604596,1705264302162,-500.0,0.00031506,2]
[311604597,1705264302171,-500.0,0.00031506,2]
[311604598,1705264302181,-500.0,0.00031506,2]
[311604599,1705264302191,-500.0,0.00031506,2]
[311604600,1705264302201,-739.11,0.00031506,2]
[311604601,1705264302211,-500.0,0.00031506,2]
[311604602,1705264302220,-500.0,0.00031506,2]
[311604603,1705264302230,-2842.79,0.00031506,2]
[311604604,1705264302241,-703.48,0.00031506,2]
[311604605,1705264302251,-557.0077369,0.00031506,2]
[311604606,1705264302260,-500.0,0.00031506,2]
[311604607,1705264302269,-755.21,0.00031506,2]
[311604608,1705264302278,-500.0,0.00031506,2]
[311604609,1705264302288,-466.13036757,0.00031506,2]
[311604610,1705264302297,-500.0,0.00031506,2]
[311604611,1705264302307,-655.3,0.00031506,2]
[311604612,1705264302316,-500.0,0.00031506,2]
[311604613,1705264302325,-500.0,0.00031506,2]
[311604614,1705264302335,-649.3,0.00031506,2]
[311604615,1705264302344,-500.0,0.00031506,2]
[311604616,1705264302354,-1021.39,0.00031506,2]
[311604617,1705264302363,-500.0,0.00031506,2]
[311604618,1705264302375,-500.0,0.00031506,2]
[311604619,1705264302384,-1175.51,0.00031506,2]
[311604620,1705264302394,-500.0,0.00031506,2]
[311604621,1705264302403,-701.34,0.00031506,2]
[311604622,1705264302412,-686.32,0.00031506,2]
[311604623,1705264302421,-500.0,0.00031506,2]
[311604624,1705264302430,-1477.05,0.00031506,2]
[311604625,1705264302439,-956.76,0.00031506,2]
[311604626,1705264302449,-500.0,0.00031506,2]
[311604627,1705264302458,-500.0,0.00031506,2]
[311604628,1705264302467,-500.0,0.00031506,2]
[311604629,1705264302477,-601.17,0.00031506,2]
[311604630,1705264302486,-158.51614702,0.00031506,2]
[311604631,1705264302496,-1476.27,0.00031506,2]
[311604632,1705264302505,-500.0,0.00031506,2]
[311604633,1705264302514,-500.0,0.00031506,2]
[311604634,1705264302524,-1151.69,0.00031506,2]
[311604635,1705264302534,-1030.11,0.00031506,2]
[311604636,1705264302544,-815.37,0.00031506,2]
[311604637,1705264302553,-500.0,0.00031506,2]
[311604638,1705264302562,-500.0,0.00031506,2]
[311604639,1705264302572,-500.0,0.00031506,2]
[311604640,1705264302582,-1060.69,0.00031506,2]
[311604641,1705264302592,-500.0,0.00031506,2]
[311604642,1705264302602,-500.0,0.00031506,2]
[311604643,1705264302611,-663.4,0.00031506,2]
[311604644,1705264302627,-485.67273233,0.00031506,2]
[311604645,1705264302636,-500.0,0.00031506,2]
[311604646,1705264302646,-500.0,0.00031506,2]
[311604647,1705264302655,-1567.33,0.00031506,2]
[311604648,1705264302664,-507.53,0.00031506,2]
[311604649,1705264302674,-690.39,0.00031506,2]
[311604650,1705264302684,-1087.14,0.00031506,2]
[311604651,1705264302695,-780.22,0.00031506,2]
[311604652,1705264302705,-1031.89,0.00031506,2]
[311604653,1705264302715,-500.0,0.00031506,2]
[311604654,1705264302725,-15692.02,0.00031506,2]
[311604655,1705264302735,-720.95,0.00031506,2]
[311604656,1705264302744,-968.33,0.00031506,2]
[311604657,1705264302754,-500.0,0.00031506,2]
[311604658,1705264302764,-4778.91,0.00031506,2]
[311604659,1705264302774,-4080.55,0.00031506,2]
[311604660,1705264302783,-500.0,0.00031506,2]
[311604661,1705264302793,-524.66,0.00031506,2]
[311604662,1705264302803,-1610.45,0.00031506,2]
[311604663,1705264302813,-1037.02,0.00031506,2]
[311604664,1705264302822,-500.0,0.00031506,2]
[311604665,1705264302832,-500.0,0.00031506,2]
[311604666,1705264302841,-500.0,0.00031506,2]
[311604667,1705264302850,-753.69,0.00031506,2]
[311604668,1705264302859,-500.0,0.00031506,2]
[311604669,1705264302873,-512.48,0.00031506,2]
[311604670,1705264302882,-819.18,0.00031506,2]
[311604671,1705264302891,-658.91,0.00031506,2]
[311604672,1705264302899,-500.0,0.00031506,2]
[311604673,1705264302909,-922.23,0.00031506,2]
[311604674,1705264302918,-1259.43,0.00031506,2]
[311604675,1705264302927,-908.29,0.00031506,2]
[311604676,1705264302936,-500.0,0.00031506,2]
[311604677,1705264302945,-500.0,0.00031506,2]
[311604678,1705264302956,-500.0,0.00031506,2]
[311604679,1705264302965,-500.0,0.00031506,2]
[311604680,1705264302974,-1934.5,0.00031506,2]
[311604681,1705264302984,-500.0,0.00031506,2]
[311604682,1705264302994,-1552.56,0.00031506,2]
[311604683,1705264303003,-500.0,0.00031506,2]
[311604684,1705264303012,-1783.71,0.00031506,2]
[311604685,1705264303022,-500.0,0.00031506,2]
[311604686,1705264303031,-813.78,0.00031506,2]
[311604687,1705264303040,-508.7,0.00031506,2]
[311604688,1705264303049,-1672.88,0.00031506,2]
[311604689,1705264303059,-887.69,0.00031506,2]
[311604690,1705264303068,-1249.33,0.00031506,2]
[311604691,1705264303077,-1118.87,0.00031506,2]
[311604692,1705264303086,-1426.72,0.00031506,2]
[311604693,1705264303094,-500.0,0.00031506,2]
[311604694,1705264303103,-5627.11,0.00031506,2]
[311604695,1705264303112,-1369.47,0.00031506,2]
[311604696,1705264303125,-575.47,0.00031506,2]
[311604697,1705264303134,-570.84,0.00031506,2]
[311604698,1705264303144,-567.98,0.00031506,2]
[311604699,1705264303154,-552.23,0.00031506,2]
[311604700,1705264303164,-599.67,0.00031506,2]
[311604701,1705264303173,-500.0,0.00031506,2]
[311604702,1705264303183,-682.29,0.00031506,2]
[311604703,1705264303192,-799.56,0.00031506,2]
[311604704,1705264303201,-2554.34,0.00031506,2]
[311604705,1705264303211,-1798.17,0.00031506,2]
[311604706,1705264303220,-1153.92,0.00031506,2]
[311604707,1705264303230,-500.0,0.00031506,2]
[311604708,1705264303240,-468.69311588,0.00031506,2]
[311604709,1705264303249,-2674.9,0.00031506,2]
[311604710,1705264303258,-4747.99,0.00031506,2]
[311604711,1705264303268,-874.04,0.00031506,2]
[311604712,1705264303277,-500.0,0.00031506,2]
[311604713,1705264303287,-522.44,0.00031506,2]
[311604714,1705264303297,-3082.22,0.00031506,2]
[311604715,1705264303306,-500.0,0.00031506,2]
[311604716,1705264303316,-953.45,0.00031506,2]
[311604717,1705264303325,-2400.47,0.00031506,2]
[311604718,1705264303334,-1501.1,0.00031506,2]
[311604719,1705264303343,-1591.7,0.00031506,2]
[311604720,1705264303352,-500.0,0.00031506,2]
[311604721,1705264303362,-500.0,0.00031506,2]
[311604722,1705264303373,-1195.23,0.00031506,2]
[311604723,1705264303382,-500.0,0.00031506,2]
[311604724,1705264303391,-500.0,0.00031506,2]
[311604725,1705264303401,-830.52,0.00031506,2]
[311604726,1705264303410,-645.86,0.00031506,2]
[311604727,1705264303419,-500.0,0.00031506,2]
[311604728,1705264303428,-500.0,0.00031506,2]
[311604729,1705264303437,-500.0,0.00031506,2]
[311604730,1705264303446,-1563.61,0.00031506,2]
[311604731,1705264303456,-552.65,0.00031506,2]
[311604732,1705264303466,-500.0,0.00031506,2]
[311604733,1705264303595,-3852.95,0.00031506,2]
[311604734,1705264303606,-1788.89,0.00031506,2]
[311604735,1705264303615,-500.0,0.00031506,2]
[311604736,1705264303631,-3780.57,0.00031506,2]
[311604737,1705264303640,-689.0,0.00031506,2]
[311604738,1705264303650,-519.07884518,0.00031506,2]
[311604739,1705264303660,-1026.83,0.00031506,2]
[311604740,1705264303670,-1077.68,0.00031506,2]
[311604741,1705264303679,-543.18,0.00031506,2]
[311604742,1705264303689,-500.0,0.00031506,2]
[311604743,1705264303698,-3887.42,0.00031506,2]
[311604744,1705264303708,-500.0,0.00031506,2]
[311604745,1705264303718,-8222.74,0.00031506,2]
[311604746,1705264303728,-706.36,0.00031506,2]
[311604747,1705264303738,-1212.77,0.00031506,2]
[311604748,1705264303748,-1605.08,0.00031506,2]
[311604749,1705264303758,-3010.13,0.00031506,2]
[311604750,1705264303768,-500.0,0.00031506,2]
[311604751,1705264303778,-500.0,0.00031506,2]
[311604752,1705264303788,-967.6,0.00031506,2]
[311604753,1705264303799,-500.0,0.00031506,2]
[311604754,1705264303809,-913.46,0.00031506,2]
[311604755,1705264303818,-3703.12,0.00031506,2]
[311604756,1705264303828,-379.68,0.00031506,2]
[311604757,1705264303838,-583.22,0.00031506,2]
[311604758,1705264303848,-30649.83,0.00031506,2]
[311604759,1705264303858,-3434.07,0.00031506,2]
[311604760,1705264303868,-500.0,0.00031506,2]
[311604761,1705264303880,-965.74,0.00031506,2]
[311604762,1705264303890,-1729.11,0.00031506,2]
[311604763,1705264303899,-842.61,0.00031506,2]
[311604764,1705264303910,-11897.09,0.00031506,2]
[311604765,1705264303919,-500.0,0.00031506,2]
[311604766,1705264303929,-1027.7,0.00031506,2]
[311604767,1705264303939,-6230.07,0.00031506,2]
[311604768,1705264303949,-1130.45,0.00031506,2]
[311604769,1705264303960,-500.0,0.00031506,2]
[311604770,1705264303969,-1353.14,0.00031506,2]
[311604771,1705264303978,-500.0,0.00031506,2]
[311604772,1705264303990,-500.0,0.00031506,5]
[311604773,1705264303999,-500.0,0.00031506,2]
[311604774,1705264304009,-3435.49,0.00031506,2]
[311604775,1705264304019,-500.0,0.00031506,2]
[311604776,1705264304029,-573.71,0.00031506,2]
[311604777,1705264304041,-644.33,0.00031506,2]
[311604778,1705264304052,-2448.9,0.00031506,2]
[311604779,1705264304062,-3036.82,0.00031506,2]
[311604780,1705264304072,-500.0,0.00031506,2]
[311604781,1705264304081,-597.1,0.00031506,2]
[311604782,1705264304091,-750.17,0.00031506,2]
[311604783,1705264304100,-828.04,0.00031506,2]
[311604784,1705264304109,-2478.07,0.00031506,2]
[311604785,1705264304119,-1871.96,0.00031506,2]
[311604786,1705264304129,-1895.33,0.00031506,2]
[311604787,1705264304139,-801.45,0.00031506,2]
[311604788,1705264304151,-1560.14,0.00031506,2]
[311604789,1705264304160,-3224.85,0.00031506,2]
[311604790,1705264304170,-533.31,0.00031506,2]
[311604791,1705264304179,-5325.11,0.00031506,2]
[311604792,1705264304190,-500.0,0.00031506,2]
[311604793,1705264304201,-500.0,0.00031506,2]
[311604794,1705264304212,-949.53,0.00031506,2]
[311604795,1705264304222,-1784.8,0.00031506,2]
[311604796,1705264304232,-730.14,0.00031506,2]
[311604797,1705264304242,-1488.85,0.00031506,2]
[311604798,1705264304251,-847.15,0.00031506,2]
[311604799,1705264304261,-500.0,0.00031506,2]
[311604800,1705264304271,-2331.02,0.00031506,2]
[311604801,1705264304282,-787.16,0.00031506,2]
[311604802,1705264304293,-1513.17,0.00031506,2]
[311604803,1705264304302,-841.76,0.00031506,2]
[311604804,1705264304313,-500.0,0.00031506,2]
[311604805,1705264304323,-524.76,0.00031506,2]
[311604806,1705264304333,-1046.23,0.00031506,2]
[311604807,1705264304343,-1523.32,0.00031506,2]
[311604808,1705264304353,-611.14,0.00031506,2]
[311604809,1705264304365,-500.0,0.00031506,2]
[311604810,1705264304376,-500.0,0.00031506,2]
[311604811,1705264304385,-4188.56,0.00031506,2]
[311604812,1705264304396,-2000.73,0.00031506,2]
[311604813,1705264304406,-1059.93,0.00031506,2]
[311604814,1705264304417,-1556.83,0.00031506,2]
[311604815,1705264304427,-500.0,0.00031506,2]
[311604816,1705264304437,-593.18,0.00031506,2]
[311604817,1705264304447,-559.75,0.00031506,2]
[311604818,1705264304457,-1572.81,0.00031506,2]
[311604819,1705264304466,-790.76,0.00031506,2]
[311604820,1705264304476,-722.19,0.00031506,2]
[311604821,1705264304486,-1160.27,0.00031506,2]
[311604822,1705264304496,-10911.16,0.00031506,2]
[311604823,1705264304505,-1333.04,0.00031506,2]
[311604824,1705264304517,-2072.02,0.00031506,2]
[311604825,1705264304527,-4765.57,0.00031506,2]
[311604826,1705264304536,-500.0,0.00031506,2]
[311604827,1705264304546,-711.46,0.00031506,2]
[311604828,1705264304555,-500.0,0.00031506,2]
[311604829,1705264304565,-500.0,0.00031506,2]
[311604830,1705264304575,-568.95,0.00031506,2]
[311604831,1705264304584,-1038.07,0.00031506,2]
[311604832,1705264304594,-500.0,0.00031506,2]
[311604833,1705264304603,-500.0,0.00031506,2]
[311604834,1705264304612,-6925.8,0.00031506,2]
[311604835,1705264304624,-7269.33,0.00031506,2]
[311604836,1705264304635,-775.66,0.00031506,2]
[311604837,1705264304645,-1868.67,0.00031506,2]
[311604838,1705264304655,-1572.91,0.00031506,2]
[311604839,1705264304664,-756.09,0.00031506,2]
[311604840,1705264304674,-1049.48,0.00031506,2]
[311604841,1705264304683,-500.0,0.00031506,2]
[311604842,1705264304694,-1088.94,0.00031506,2]
[311604843,1705264304703,-1736.87,0.00031506,2]
[311604844,1705264304714,-1179.24,0.00031506,2]
[311604845,1705264304723,-660.67,0.00031506,2]
[311604846,1705264304733,-500.0,0.00031506,2]
[311604847,1705264304742,-1917.76,0.00031506,2]
[311604848,1705264304751,-1883.84,0.00031506,2]
[311604849,1705264304761,-500.0,0.00031506,2]
[311604850,1705264304770,-240.75850878,0.00031506,2]
[311604851,1705264304779,-500.0,0.00031506,2]
[311604852,1705264304789,-3549.24,0.00031506,2]
[311604853,1705264304799,-1639.07,0.00031506,2]
[311604854,1705264304808,-726.79,0.00031506,2]
[311604855,1705264304818,-500.0,0.00031506,2]
[311604856,1705264304827,-500.0,0.00031506,2]
[311604857,1705264304836,-500.0,0.00031506,2]
[311604858,1705264304845,-1673.99,0.00031506,2]
[311604859,1705264304855,-3692.47,0.00031506,2]
[311604860,1705264304865,-19757.41,0.00031506,2]
[311604861,1705264304875,-1877.85,0.00031506,2]
[311604862,1705264304885,-500.0,0.00031506,2]
[311604863,1705264304894,-2271.06,0.00031506,2]
[311604864,1705264304903,-500.0,0.00031506,2]
[311604865,1705264304912,-500.0,0.00031506,2]
[311604866,1705264304922,-2078.93,0.00031506,2]
[311604867,1705264304931,-766.43,0.00031506,2]
[311604868,1705264304940,-862.55,0.00031506,2]
[311604869,1705264304950,-1101.05,0.00031506,2]
[311604870,1705264304959,-1066.09,0.00031506,2]
[311604871,1705264304969,-500.0,0.00031506,2]
[311604872,1705264304978,-1259.5,0.00031506,2]
[311604873,1705264304988,-648.66,0.00031506,2]
[311604874,1705264304997,-500.0,0.00031506,2]
[311604875,1705264305007,-3155.7,0.00031506,2]
[311604876,1705264305016,-500.0,0.00031506,2]
[311604877,1705264305026,-500.0,0.00031506,2]
[311604878,1705264305036,-1899.34,0.00031506,2]
[311604879,1705264305045,-541.14,0.00031506,2]
[311604880,1705264305056,-1672.54,0.00031506,2]
[311604881,1705264305065,-500.0,0.00031506,2]
[311604882,1705264305075,-612.36,0.00031506,2]
[311604883,1705264305084,-500.0,0.00031506,2]
[311604884,1705264305093,-500.0,0.00031506,2]
[311604885,1705264305103,-1740.09,0.00031506,2]
[311604886,1705264305112,-920.75,0.00031506,2]
[311604887,1705264305123,-3991.14,0.00031506,2]
[311604888,1705264305134,-10488.2,0.00031506,2]
[311604889,1705264305147,-1101.91,0.00031506,2]
[311604890,1705264305157,-1042.12,0.00031506,2]
[311604891,1705264305166,-956.24,0.00031506,2]
[311604892,1705264305175,-1103.01,0.00031506,2]
[311604893,1705264305185,-500.0,0.00031506,2]
[311604894,1705264305194,-896.85,0.00031506,2]
[311604895,1705264305204,-3953.12,0.00031506,2]
[311604896,1705264305213,-500.0,0.00031506,2]
[311604897,1705264305223,-1033.26,0.00031506,2]
[311604898,1705264305232,-500.0,0.00031506,2]
[311604899,1705264305242,-2574.62,0.00031506,2]
[311604900,1705264305251,-1533.7,0.00031506,2]
[311604901,1705264305261,-882.31,0.00031506,2]
[311604902,1705264305270,-2093.22,0.00031506,2]
[311604903,1705264305279,-1449.1,0.00031506,2]
[311604904,1705264305289,-664.21,0.00031506,2]
[311604905,1705264305299,-526.99,0.00031506,2]
[311604906,1705264305310,-808.11,0.00031506,2]
[311604907,1705264305321,-2286.6,0.00031506,2]
[311604908,1705264305331,-732.92,0.00031506,2]
[311604909,1705264305341,-918.48,0.00031506,2]
[311604910,1705264305351,-1602.23,0.00031506,2]
[311604911,1705264305360,-500.0,0.00031506,2]
[311604912,1705264305370,-567.37,0.00031506,2]
[311604913,1705264305379,-531.09,0.00031506,2]
[311604914,1705264305389,-500.0,0.00031506,2]
[311604915,1705264305398,-2009.84,0.00031506,2]
[311604916,1705264305407,-500.0,0.00031506,2]
[311604917,1705264305417,-1201.65,0.00031506,2]
[311604918,1705264305427,-1108.45,0.00031506,2]
[311604919,1705264305436,-4796.3,0.00031506,2]
[311604920,1705264305445,-512.33,0.00031506,2]
[311604921,1705264305455,-500.0,0.00031506,2]
[311604922,1705264305464,-596.78,0.00031506,2]
[311604923,1705264305473,-549.32,0.00031506,2]
[311604924,1705264305482,-2156.48,0.00031506,2]
[311604925,1705264305491,-2657.18,0.00031506,2]
[311604926,1705264305500,-723.46,0.00031506,2]
[311604927,1705264305510,-539.01,0.00031506,2]
[311604928,1705264305519,-1641.51,0.00031506,2]
[311604929,1705264305528,-2203.79,0.00031506,2]
[311604930,1705264305538,-500.0,0.00031506,2]
[311604931,1705264305547,-1057.67,0.00031506,2]
[311604932,1705264305556,-2139.26,0.00031506,2]
[311604933,1705264305566,-500.0,0.00031506,2]
[311604934,1705264305575,-1109.41,0.00031506,2]
[311604935,1705264305584,-3320.2,0.00031506,2]
[311604936,1705264305593,-500.0,0.00031506,2]
[311604937,1705264305603,-739.25,0.00031507,2]
[311604938,1705264305612,-155.0,0.00031507,2]
[311604939,1705264305623,-838.54,0.0003156,2]
[311604940,1705264305632,-940.47,0.0003156,2]
[311604941,1705264305642,-200000.0,0.00031671,7]
[311604942,1705264305652,-528.91,0.00031727,2]
[311604943,1705264305661,-61535.0032285,0.00031758,2]
[311604944,1705264305670,-1835.3674427,0.00031758,2]
[311604945,1705264305680,-2311.237187,0.00031758,2]
[311604946,1705264305689,-3200.1199643,0.00031758,2]
[311604947,1705264305699,-500.0,0.0003178,2]
[311604948,1705264305708,-500.0,0.0003178,2]
[311604949,1705264305717,-500.0,0.0003178,2]
[311604950,1705264305726,-500.0,0.0003178,2]
[311604951,1705264306058,-500.0,0.0003178,2]
[311604952,1705264306067,-250.3251101,0.0003178,2]
[311604953,1705264306077,-500.0,0.0003178,2]
[311604954,1705264306086,-500.0,0.0003178,2]
[311604955,1705264306095,-500.0,0.0003178,2]
[311604956,1705264306105,-500.0,0.0003178,2]
[311604957,1705264306115,-500.0,0.0003178,2]
[311604958,1705264306125,-500.0,0.0003178,2]
[311604959,1705264306135,-522.7,0.0003178,2]
[311604960,1705264306145,-500.0,0.0003178,2]
[311604961,1705264306156,-500.0,0.0003178,2]
[311604962,1705264306167,-543.8,0.0003178,2]
[311604963,1705264306176,-500.0,0.0003178,2]
[311604964,1705264306186,-250.0,0.0003178,2]
[311604965,1705264306195,-518.27,0.0003178,2]
[311604966,1705264306204,-500.0,0.0003178,2]
[311604967,1705264306213,-512.56,0.0003178,2]
[311604968,1705264306223,-500.0,0.0003178,2]
[311604969,1705264306232,-500.0,0.0003178,2]
[311604970,1705264306241,-528.06,0.0003178,2]
[311604971,1705264306251,-500.0,0.0003178,2]
[311604972,1705264306260,-538.04,0.0003178,2]
[311604973,1705264306269,-500.0,0.0003178,2]
[311604974,1705264306278,-500.0,0.0003178,2]
[311604975,1705264306287,-500.0,0.0003178,2]
[311604976,1705264306297,-829.92,0.0003178,2]
[311604977,1705264306305,-500.0,0.0003178,2]
[311604978,1705264306314,-221.63173201,0.0003178,2]
[311604979,1705264306324,-500.0,0.0003178,2]
[311604980,1705264306333,-831.82,0.0003178,2]
[311604981,1705264306342,-500.0,0.0003178,2]
[311604982,1705264306351,-753.34,0.0003178,2]
[311604983,1705264306361,-500.0,0.0003178,2]
[311604984,1705264306370,-716.55,0.0003178,2]
[311604985,1705264306380,-500.0,0.0003178,2]
[311604986,1705264306390,-331.55743396,0.0003178,2]
[311604987,1705264306400,-500.0,0.0003178,2]
[311604988,1705264306410,-500.0,0.0003178,2]
[311604989,1705264306419,-549.71,0.0003178,2]
[311604990,1705264306428,-500.0,0.0003178,2]
[311604991,1705264306438,-500.0,0.0003178,2]
[311604992,1705264306447,-534.55,0.0003178,2]
[311604993,1705264306456,-500.0,0.0003178,2]
[311604994,1705264306465,-500.0,0.0003178,2]
[311604995,1705264306475,-511.27,0.0003178,2]
[311604996,1705264306484,-554.03,0.0003178,2]
[311604997,1705264306493,-500.0,0.0003178,2]
[311604998,1705264306503,-500.0,0.0003178,2]
[311604999,1705264306512,-662.74,0.0003178,2]
[311605000,1705264306521,-590.75,0.0003178,2]
[311605001,1705264306531,-500.0,0.0003178,2]
[311605002,1705264306540,-500.0,0.0003178,2]
[311605003,1705264306550,-500.0,0.0003178,2]
[311605004,1705264306559,-500.0,0.0003178,2]
[311605005,1705264306568,-500.0,0.0003178,2]
[311605006,1705264306578,-852.63,0.0003178,2]
[311605007,1705264306587,-500.0,0.0003178,2]
[311605008,1705264306597,-500.0,0.0003178,2]
[311605009,1705264306606,-500.0,0.0003178,2]
[311605010,1705264306615,-500.0,0.0003178,2]
[311605011,1705264306625,-500.0,0.0003178,2]
[311605012,1705264306634,-500.0,0.0003178,2]
[311605013,1705264306644,-500.0,0.0003178,2]
[311605014,1705264306654,-556.75,0.0003178,2]
[311605015,1705264306664,-500.0,0.0003178,2]
[311605016,1705264306673,-500.0,0.0003178,2]
[311605017,1705264306684,-500.0,0.0003178,2]
[311605018,1705264306693,-584.84,0.0003178,2]
[311605019,1705264306703,-500.0,0.0003178,2]
[311605020,1705264306712,-500.0,0.0003178,2]
[311605021,1705264306722,-500.0,0.0003178,2]
[311605022,1705264306731,-955.59,0.0003178,2]